fUST/lending_fUST_20251014
["ID","MTS","AMOUNT","RATE_DAILY","PERIOD"]
[391232417,1760421727736,-500.0,0.00019406,2]
[391232418,1760421727775,-500.0,0.00019406,2]
[391232419,1760421727811,-500.0,0.00019406,2]
[391232420,1760421727846,-500.0,0.00019406,2]
[391232421,1760421727883,-500.0,0.00019406,2]
[391232422,1760421727919,-500.0,0.00019406,2]
[391232423,1760421727955,-642.26,0.00019406,2]
[391232424,1760421728096,-500.0,0.00019406,2]
[391232425,1760421728201,-2215.49,0.00019407,2]
[391232426,1760421728239,-500.0,0.00019407,2]
[391232427,1760421728267,-500.0,0.00019406,2]
[391232428,1760421728277,-8500.01,0.00019407,2]
[391232429,1760421728318,-10000.01,0.00019407,2]
[391232430,1760421728339,-10000.01,0.00019407,2]
[391232431,1760421728375,-500.0,0.00019406,2]
[391232432,1760421728385,-9500.01,0.00019407,2]
[391232433,1760421728433,151.0,0.00017631,2]
[391232434,1760421728475,-10000.01,0.00019407,2]
[391232435,1760421728630,-500.0,0.00019406,2]
[391232436,1760421728684,-9000.01,0.00019407,2]
[391232437,1760421728788,-2902.12701484,0.00019407,2]
[391232438,1760421728828,-344.69359598,0.00019407,2]
[391232439,1760421728866,-500.0,0.00019407,2]
[391232440,1760421728905,-500.0,0.00019407,2]
[391232441,1760421728945,-500.0,0.00019407,2]
[391232442,1760421728985,-6.36877836,0.00019407,2]
[391232443,1760421729147,-493.63122164,0.00019406,2]
[391232444,1760421729435,151.0,0.00017736,2]
[391232445,1760421729814,-6.36877836,0.00019406,2]
[391232446,1760421729851,-500.0,0.00019406,2]
[391232447,1760421729889,-603.31,0.00019406,2]
[391232448,1760421729927,-500.0,0.00019406,2]
[391232449,1760421729966,-603.31,0.00019406,2]
[391232450,1760421730005,-294.64672216,0.00019406,2]
[391232451,1760421730045,-603.31,0.00019406,2]
[391232452,1760421730084,-493.63122164,0.00019407,2]
[391232453,1760421730122,-500.0,0.00019407,2]
[391232454,1760421730160,-429.29597552,0.00019407,2]
[391232455,1760421730196,-200.0,0.00019444,2]
[391232456,1760421730450,-603.31,0.00019406,2]
[391232457,1760421730487,-2105.41764886,0.00019462,2]
[391232458,1760421730523,-500.0,0.000195,2]
[391232459,1760421730564,-500.0,0.00019505,2]
[391232460,1760421730600,-500.0,0.00019505,2]
[391232461,1760421730638,-500.0,0.00019505,2]
[391232462,1760421730676,-216.87544388,0.00019505,2]
[391232463,1760421731141,-315.38916076,0.00019406,2]
[391232464,1760421731165,-287.92083924,0.00019406,2]
[391232465,1760421731174,-77.75841916,0.00019406,2]
[391232466,1760421731319,151.0,0.00017947,2]
[391232467,1760421732384,151.0,0.00018052,2]
[391232468,1760421733432,151.0,0.00018157,2]
[391232469,1760421733746,-525.55158084,0.00019406,2]
[391232470,1760421733785,-603.31,0.00019406,2]
[391232471,1760421733819,-603.31,0.00019406,2]
[391232472,1760421733855,-603.31,0.00019406,2]
[391232473,1760421733890,-603.31,0.00019406,2]
[391232474,1760421733924,-603.31,0.00019406,2]
[391232475,1760421733959,-603.31,0.00019406,2]
[391232476,1760421733993,-603.31,0.00019406,2]
[391232477,1760421734128,-603.31,0.00019406,2]
[391232478,1760421734164,-603.31,0.00019406,2]
[391232479,1760421734203,-603.31,0.00019406,2]
[391232480,1760421734237,-500.0,0.00019406,2]
[391232481,1760421734276,-603.31,0.00019406,2]
[391232482,1760421734312,-500.0,0.00019406,2]
[391232483,1760421734346,-500.0,0.00019406,2]
[391232484,1760421734384,-148.80381452,0.00019505,2]
[391232485,1760421734419,-500.0,0.00019505,2]
[391232486,1760421734458,-375.92237096,0.00019505,2]
[391232487,1760421734588,-124.07762904,0.00019505,2]
[391232488,1760421734624,-500.0,0.00019505,2]
[391232489,1760421734659,-500.0,0.00019505,2]
[391232490,1760421734694,-522.37958291,0.00019505,2]
[391232491,1760421734727,-500.0,0.00019505,2]
[391232492,1760421734762,-500.0,0.00019505,2]
[391232493,1760421734794,-500.0,0.00019505,2]
[391232494,1760421734828,-500.0,0.00019505,2]
[391232495,1760421734861,-500.0,0.00019505,2]
[391232496,1760421734894,-500.0,0.00019505,2]
[391232497,1760421734929,-207.0955761,0.00019505,2]
[391232498,1760421735180,-603.31,0.00019406,2]
[391232499,1760421735215,-500.0,0.00019406,2]
[391232500,1760421735250,-292.9044239,0.00019505,2]
[391232501,1760421735284,-500.0,0.00019505,2]
[391232502,1760421735316,-613.86250346,0.00019505,2]
[391232503,1760421735351,-500.0,0.00019505,2]
[391232504,1760421735385,-500.0,0.00019505,2]
[391232505,1760421735421,-502.05697486,0.00019505,2]
[391232506,1760421735455,-500.0,0.00019505,2]
[391232507,1760421735488,-475.74219556,0.00019505,2]
[391232508,1760421735689,-603.31,0.00019406,2]
[391232509,1760421735843,-24.25780444,0.00019505,2]
[391232510,1760421735878,-500.0,0.00019505,2]
[391232511,1760421735912,-500.0,0.00019505,2]
[391232512,1760421735948,-500.0,0.00019505,2]
[391232513,1760421735984,-268.67,0.00019505,2]
[391232514,1760421736019,-500.0,0.00019505,2]
[391232515,1760421736052,-502.45102861,0.00019505,2]
[391232516,1760421736085,-500.0,0.00019505,2]
[391232517,1760421736119,-500.0,0.00019505,2]
[391232518,1760421736154,-500.0,0.00019505,2]
[391232519,1760421736214,151.0,0.00018263,2]
[391232520,1760421736292,-500.0,0.00019505,2]
[391232521,1760421736327,-506.4280799,0.00019505,2]
[391232522,1760421736362,-500.0,0.00019505,2]
[391232523,1760421736397,-500.0,0.00019505,2]
[391232524,1760421736431,-500.0,0.00019505,2]
[391232525,1760421736464,-500.0,0.00019505,2]
[391232526,1760421736497,-500.0,0.00019505,2]
[391232527,1760421736531,-500.0,0.00019505,2]
[391232528,1760421736568,-500.0,0.00019505,2]
[391232529,1760421736604,-487.1538402,0.00019505,2]
[391232530,1760421736766,-603.31,0.00019406,2]
[391232531,1760421736800,-500.0,0.00019406,2]
[391232532,1760421736834,-12.8461598,0.00019505,2]
[391232533,1760421736868,-500.0,0.00019505,2]
[391232534,1760421736904,-500.0,0.00019505,2]
[391232535,1760421736939,-500.0,0.00019505,2]
[391232536,1760421736975,-500.0,0.00019505,2]
[391232537,1760421737012,-500.0,0.00019505,2]
[391232538,1760421737051,-500.0,0.00019505,2]
[391232539,1760421737085,-500.0,0.00019505,2]
[391232540,1760421737119,-209.6776804,0.00019505,2]
[391232541,1760421737299,-348.3423196,0.00019505,2]
[391232542,1760421737332,-500.99324795,0.00019505,2]
[391232543,1760421737365,-500.0,0.00019505,2]
[391232544,1760421737399,-500.0,0.00019505,2]
[391232545,1760421737432,-627.4177798,0.00019505,2]
[391232546,1760421737465,-500.0,0.00019505,2]
[391232547,1760421737497,-500.0,0.00019505,2]
[391232548,1760421737530,-500.0,0.00019505,2]
[391232549,1760421737568,-502.94172839,0.00019505,2]
[391232550,1760421737601,603.31,0.00019406,2]
[391232551,1760421737635,437.30984852,0.00019406,2]
[391232552,1760421737699,-62.69015148,0.00019406,2]
[391232553,1760421737777,603.31,0.00019406,2]
[391232554,1760421737882,500.0,0.00019406,2]
[391232555,1760421737998,5000.0,0.00019505,2]
[391232556,1760421738130,151.0,0.00018368,2]
[391232557,1760421738161,500.0,0.00019406,2]
[391232558,1760421738284,500.0,0.00019406,2]
[391232559,1760421738318,603.31,0.00019406,2]
[391232560,1760421738530,500.0,0.00019406,2]
[391232561,1760421738631,500.0,0.00019406,2]
[391232562,1760421738734,603.42591425,0.00019406,2]
[391232563,1760421738870,413.58378279,0.00019406,2]
[391232564,1760421739084,151.0,0.00018473,2]
[391232565,1760421740574,151.0,0.00018578,2]
[391232566,1760421740780,151.0,0.00018684,2]
[391232567,1760421740845,151.0,0.00018789,2]
[391232568,1760421740924,151.0,0.00018894,2]
[391232569,1760421741556,151.0,0.00018999,2]
[391232570,1760421753972,-5000.0,0.00019212,2]
[391232571,1760421758744,0.01,0.00019212,2]
[391232572,1760421758810,4999.99,0.00019212,2]
[391232573,1760421766931,1408.99770919,0.00019212,2]
[391232574,1760421770213,-300.0,0.000194,2]
[391232575,1760421770291,-300.0,0.000194,2]
[391232576,1760421770365,-300.0,0.000194,2]
[391232577,1760421778970,300.0,0.000194,2]
[391232578,1760421782288,1151.21172818,0.000194,2]
[391232579,1760421801991,300.0,0.00019,2]
[391232580,1760421805524,151.0,0.00017999,2]
[391232581,1760421810835,6297.79827182,0.00019307,2]
[391232582,1760421810896,10000.01,0.00019307,2]
[391232583,1760421810962,10000.01,0.00019307,2]
[391232584,1760421811031,10000.01,0.00019307,2]
[391232585,1760421811095,10000.01,0.00019307,2]
[391232586,1760421811366,10000.01,0.00019307,2]
[391232587,1760421811426,10000.01,0.00019307,2]
[391232588,1760421811485,10000.01,0.00019307,2]
[391232589,1760421811542,10000.01,0.00019307,2]
[391232590,1760421811601,10000.01,0.00019307,2]
[391232591,1760421813019,300.0,0.00019,2]
[391232592,1760421827480,5000.0,0.00019,2]
[391232593,1760421829941,-307.07821763,0.00019307,2]
[391232594,1760421835337,5000.0,0.00019307,2]
[391232595,1760421842308,0.01,0.00019306,2]
[391232596,1760421842367,299.99,0.00019306,2]
[391232597,1760421843400,5000.0,0.00019307,2]
[391232598,1760421851248,4700.02,0.00019307,2]
[391232599,1760421851303,299.98,0.00019307,2]
[391232600,1760421857238,-5774.92194691,0.00019307,2]
[391232601,1760421857398,-10000.01,0.00019307,2]
[391232602,1760421857647,-10000.01,0.00019307,2]
[391232603,1760421857886,-10000.01,0.00019307,2]
[391232604,1760421858098,-10000.01,0.00019307,2]
[391232605,1760421858326,-10000.01,0.00019307,2]
[391232606,1760421858571,-10000.01,0.00019307,2]
[391232607,1760421860610,-10000.01,0.00019307,2]
[391232608,1760421860885,-10000.01,0.00019307,2]
[391232609,1760421861132,-10000.01,0.00019307,2]
[391232610,1760421871329,622.77894371,0.00019306,2]
[391232611,1760421871394,379.23327036,0.00019306,2]
[391232612,1760421872205,500.0,0.00019306,2]
[391232613,1760421872268,500.0,0.00019306,2]
[391232614,1760421872328,500.0,0.00019306,2]
[391232615,1760421872394,500.0,0.00019306,2]
[391232616,1760421872458,500.0,0.00019306,2]
[391232617,1760421872518,500.0,0.00019306,2]
[391232618,1760421872579,500.0,0.00019306,2]
[391232619,1760421872639,500.0,0.00019306,2]
[391232620,1760421872694,500.0,0.00019306,2]
[391232621,1760421872748,202.85759614,0.00019306,2]
[391232622,1760421872811,500.0,0.00019306,2]
[391232623,1760421872873,625.27154082,0.00019306,2]
[391232624,1760421872935,500.0,0.00019306,2]
[391232625,1760421872995,500.0,0.00019306,2]
[391232626,1760421873053,500.0,0.00019306,2]
[391232627,1760421873118,500.0,0.00019306,2]
[391232628,1760421873177,500.0,0.00019306,2]
[391232629,1760421873244,500.0,0.00019306,2]
[391232630,1760421873491,169.86864897,0.00019306,2]
[391232631,1760421873555,330.13135103,0.00019306,2]
[391232632,1760421873616,570.10039445,0.00019306,2]
[391232633,1760421873680,500.0,0.00019306,2]
[391232634,1760421873743,500.0,0.00019306,2]
[391232635,1760421873798,303.10383281,0.00019306,2]
[391232636,1760421873864,500.0,0.00019306,2]
[391232637,1760421873926,500.0,0.00019306,2]
[391232638,1760421873990,544.22269711,0.00019306,2]
[391232639,1760421874054,500.0,0.00019306,2]
[391232640,1760421874120,500.0,0.00019306,2]
[391232641,1760421874182,500.0,0.00019306,2]
[391232642,1760421874247,500.0,0.00019306,2]
[391232643,1760421874306,389.52443412,0.00019306,2]
[391232644,1760421874366,500.0,0.00019306,2]
[391232645,1760421874430,500.0,0.00019306,2]
[391232646,1760421874560,307.06846758,0.00019307,2]
[391232647,1760421879177,-2555.8588229,0.00019307,2]
[391232648,1760421879263,-10000.01,0.00019307,2]
[391232649,1760421879492,-10000.01,0.00019307,2]
[391232650,1760421879745,-10000.01,0.00019307,2]
[391232651,1760421879937,-10000.01,0.00019307,2]
[391232652,1760421880128,-10000.01,0.00019307,2]
[391232653,1760421880326,-10000.01,0.00019307,2]
[391232654,1760421880533,-10000.01,0.00019307,2]
[391232655,1760421880743,-10000.01,0.00019307,2]
[391232656,1760421902264,300.0,0.00019306,2]
[391232657,1760421904243,300.0,0.00019306,2]
[391232658,1760421904993,1200.0,0.00019306,2]
[391232659,1760421962503,300.0,0.00019306,2]
[391232665,1760421994719,500.0,0.00019306,2]
[391232666,1760421994785,1849.9905906,0.00018554,2]
[391232667,1760421995080,500.0,0.00019306,2]
[391232668,1760421995175,500.0,0.00019306,2]
[391232669,1760421995454,500.0,0.00019306,2]
[391232670,1760421995674,500.0,0.00019306,2]
[391232671,1760421995888,500.0,0.00019306,2]
[391232672,1760421996125,500.0,0.00019306,2]
[391232673,1760421996353,500.0,0.00019306,2]
[391232674,1760421996579,500.0,0.00019306,2]
[391232675,1760421996818,500.0,0.00019306,2]
[391232676,1760421997096,500.0,0.00019306,2]
[391232677,1760421997337,500.0,0.00019306,2]
[391232679,1760421998125,50.0194094,0.00019306,2]
[391232680,1760421998185,748.64284294,0.00019306,2]
[391232757,1760422047891,1200.0,0.00019306,2]
[391232760,1760422054759,1363.14787845,0.00019306,2]
[391232764,1760422080235,212.1,0.00015205,2]
[391232765,1760422080718,161.16,0.00015205,2]
[391232766,1760422082848,300.0,0.00019306,2]
[391232767,1760422097391,500.0,0.00019306,2]
[391232768,1760422097633,500.0,0.00019306,2]
[391232769,1760422097876,500.0,0.00019306,2]
[391232770,1760422098151,311.12245731,0.00019306,2]
[391232771,1760422105384,500.0,0.00019306,2]
[391232772,1760422135304,1000.0,0.00018405,2]
[391232773,1760422142386,300.0,0.00019306,2]
[391232774,1760422149364,500.0,0.00019306,2]
[391232775,1760422149588,500.0,0.00019306,2]
[391232776,1760422149823,500.0,0.00019306,2]
[391232777,1760422150095,500.0,0.00019306,2]
[391232778,1760422150683,403.8368213,0.00019306,2]
[391232779,1760422150735,96.1631787,0.00019306,2]
[391232780,1760422150949,500.0,0.00019306,2]
[391232781,1760422151226,500.0,0.00019306,2]
[391232782,1760422151460,500.0,0.00019306,2]
[391232783,1760422151841,500.0,0.00019306,2]
[391232784,1760422152077,425.03172827,0.00019306,2]
[391232785,1760422154151,1694.53,0.00019306,2]
[391232786,1760422154381,1694.53,0.00019306,2]
[391232787,1760422154663,1694.53,0.00019306,2]
[391232788,1760422154899,1694.53,0.00019306,2]
[391232789,1760422155244,1694.53,0.00019306,2]
[391232790,1760422155396,1527.36,0.00019306,2]
[391232791,1760422155451,167.17,0.00019306,2]
[391232792,1760422155622,1694.53,0.00019306,2]
[391232793,1760422155857,1694.53,0.00019306,2]
[391232794,1760422156111,1694.53,0.00019306,2]
[391232795,1760422156387,1694.53,0.00019306,2]
[391232796,1760422156670,1694.53,0.00019306,2]
[391232797,1760422156911,1360.19,0.00019306,2]
[391232798,1760422156976,334.34,0.00019306,2]
[391232799,1760422157182,1694.53,0.00019306,2]
[391232800,1760422157425,1694.53,0.00019306,2]
[391232801,1760422157665,1694.53,0.00019306,2]
[391232802,1760422157942,1694.53,0.00019306,2]
[391232803,1760422158208,1694.53,0.00019306,2]
[391232804,1760422158444,1193.02,0.00019306,2]
[391232805,1760422158498,501.51,0.00019306,2]
[391232806,1760422158824,1694.53,0.00019306,2]
[391232807,1760422159097,1694.53,0.00019306,2]
[391232808,1760422159356,1694.53,0.00019306,2]
[391232809,1760422159385,-187.98519999,0.00019307,2]
[391232810,1760422159593,1694.53,0.00019306,2]
[391232811,1760422159833,1694.53,0.00019306,2]
[391232812,1760422161613,-223.32194561,0.00019307,2]
[391232813,1760422163059,1025.85,0.00019306,2]
[391232814,1760422163131,668.73383209,0.00019306,2]
[391232815,1760422165814,-200.0,0.00019307,2]
[391232816,1760422173359,-6826.33542879,0.00019307,2]
[391232817,1760422173555,-10000.01,0.00019307,2]
[391232818,1760422173757,-10000.01,0.00019307,2]
[391232819,1760422177738,-10000.01,0.00019307,2]
[391232820,1760422177962,-10000.01,0.00019307,2]
[391232821,1760422178164,-10000.01,0.00019307,2]
[391232822,1760422178351,-10000.01,0.00019307,2]
[391232823,1760422178573,-10000.01,0.00019307,2]
[391232824,1760422178782,-10000.01,0.00019307,2]
[391232825,1760422179022,-2373.64983365,0.00019307,2]
[391232826,1760422179083,-5252.7103327,0.00019307,2]
[391232827,1760422187947,-167.17540248,0.00019284,2]
[391232828,1760422188184,5000.0,0.00019,2]
[391232829,1760422195808,2226.17850983,0.00019284,2]
[391232830,1760422197772,-500.0,0.00019306,2]
[391232831,1760422197830,-500.0,0.00019306,2]
[391232832,1760422197890,-500.0,0.00019306,2]
[391232833,1760422197947,-500.0,0.00019306,2]
[391232834,1760422198009,-500.0,0.00019306,2]
[391232835,1760422198068,-327.99031778,0.00019306,2]
[391232836,1760422202604,300.0,0.00019305,2]
[391232837,1760422203800,508.40066927,0.00019305,2]
[391232838,1760422203962,164.67,0.00019306,2]
[391232839,1760422204844,1200.0,0.00019305,2]
[391232840,1760422205552,500.0,0.00019306,2]
[391232841,1760422205725,1670.95869517,0.00018398,2]
[391232842,1760422205789,10000.01,0.00018398,2]
[391232843,1760422205861,10000.01,0.00018398,2]
[391232844,1760422205941,10000.01,0.00018398,2]
[391232845,1760422206021,5492.74067363,0.00018398,2]
[391232846,1760422209071,500.0,0.00019306,2]
[391232847,1760422209307,500.0,0.00019306,2]
[391232848,1760422209681,500.0,0.00019306,2]
[391232849,1760422209934,500.0,0.00019306,2]
[391232850,1760422210185,500.0,0.00019306,2]
[391232851,1760422210476,500.0,0.00019306,2]
[391232852,1760422210594,5000.0,0.00019306,2]
[391232853,1760422210886,500.0,0.00019306,2]
[391232854,1760422211035,500.0,0.00019306,2]
[391232855,1760422211223,500.0,0.00019306,2]
[391232856,1760422211472,500.0,0.00019306,2]
[391232857,1760422211715,0.01,0.00019306,2]
[391232858,1760422211781,4999.99,0.00019306,2]
[391232859,1760422211842,500.0,0.00019306,2]
[391232860,1760422212000,391.20164624,0.00019306,2]
[391232861,1760422213833,3018.15,0.00019306,2]
[391232862,1760422214098,3018.15,0.00019306,2]
[391232863,1760422214329,3018.15,0.00019306,2]
[391232864,1760422214591,945.56,0.00019306,2]
[391232865,1760422214656,2072.59,0.00019306,2]
[391232866,1760422214829,3018.15,0.00019306,2]
[391232867,1760422215070,3018.15,0.00019306,2]
[391232868,1760422215326,1891.12,0.00019306,2]
[391232869,1760422215392,1127.03,0.00019306,2]
[391232870,1760422215578,3018.15,0.00019306,2]
[391232871,1760422215923,3018.15,0.00019306,2]
[391232872,1760422216174,2836.68,0.00019306,2]
[391232873,1760422216237,181.47,0.00019306,2]
[391232874,1760422216750,3018.15,0.00019306,2]
[391232875,1760422216999,3018.15,0.00019306,2]
[391232876,1760422217278,3018.15,0.00019306,2]
[391232877,1760422217492,764.09,0.00019306,2]
[391232878,1760422217555,2254.06,0.00019306,2]
[391232879,1760422217709,3018.15,0.00019306,2]
[391232880,1760422217968,3018.15,0.00019306,2]
[391232881,1760422218199,1709.65,0.00019306,2]
[391232882,1760422226173,-1308.5,0.00019306,2]
[391232883,1760422226253,-3018.15,0.00019306,2]
[391232884,1760422226839,-3018.15,0.00019306,2]
[391232885,1760422226914,-945.56,0.00019306,2]
[391232886,1760422227035,-2072.59,0.00019306,2]
[391232887,1760422227113,-2836.68,0.00019306,2]
[391232888,1760422227433,-181.47,0.00019306,2]
[391232889,1760422227508,-3018.15,0.00019306,2]
[391232890,1760422227579,-582.62,0.00019306,2]
[391232930,1760422231853,-2435.53,0.00019306,2]
[391232932,1760422231863,-1254.64303641,0.00019306,2]
[391232934,1760422231874,-1763.52696359,0.00019306,2]
[391232936,1760422231883,-239.37266371,0.00019306,2]
[391232938,1760422231895,-260.62733629,0.00019306,2]
[391232940,1760422231904,-500.0,0.00019306,2]
[391232941,1760422231913,-500.0,0.00019306,2]
[391232942,1760422231923,-500.0,0.00019306,2]
[391232943,1760422231932,-500.0,0.00019306,2]
[391232944,1760422231941,-500.0,0.00019306,2]
[391232945,1760422231951,-154.02567376,0.00019306,2]
[391232946,1760422231970,-345.97432624,0.00019306,2]
[391232948,1760422231980,-500.0,0.00019306,2]
[391232950,1760422231989,-500.0,0.00019306,2]
[391232952,1760422231999,-500.0,0.00019306,2]
[391232954,1760422232008,-230.73,0.00019306,2]
[391232955,1760422232018,-500.0,0.00019306,2]
[391232957,1760422232027,-500.0,0.00019306,2]
[391232959,1760422232036,-500.0,0.00019306,2]
[391232960,1760422232045,-500.0,0.00019306,2]
[391232961,1760422232054,-500.0,0.00019306,2]
[391232963,1760422232063,-3200.0,0.00019306,2]
[391232965,1760422232073,-168.26361376,0.00019306,2]
[391233126,1760422235306,5000.0,0.00019,2]
[391233134,1760422237895,-331.73638624,0.00019306,2]
[391233135,1760422237905,-500.0,0.00019306,2]
[391233136,1760422237915,-500.0,0.00019306,2]
[391233137,1760422237924,-500.0,0.00019306,2]
[391233138,1760422237934,-500.0,0.00019306,2]
[391233139,1760422237943,-500.0,0.00019306,2]
[391233140,1760422237953,-500.0,0.00019306,2]
[391233141,1760422237962,-544.27,0.00019306,2]
[391233142,1760422237971,-525.48214862,0.00019306,2]
[391233143,1760422237980,-487.40280562,0.00019306,2]
[391233144,1760422237989,-164.26155733,0.00019306,2]
[391233145,1760422237999,-500.0,0.00019306,2]
[391233146,1760422238008,-500.0,0.00019306,2]
[391233147,1760422238017,-542.1454975,0.00019306,2]
[391233148,1760422238027,-500.0,0.00019306,2]
[391233149,1760422238036,-323.45387475,0.00019306,2]
[391233150,1760422238045,-500.0,0.00019306,2]
[391233151,1760422238054,-500.0,0.00019306,2]
[391233152,1760422238064,-500.0,0.00019306,2]
[391233153,1760422238074,-500.0,0.00019306,2]
[391233154,1760422238083,-500.0,0.00019306,2]
[391233155,1760422238092,-500.0,0.00019306,2]
[391233156,1760422238102,-500.0,0.00019306,2]
[391233157,1760422238111,-500.0,0.00019306,2]
[391233158,1760422238120,-551.32283671,0.00019306,2]
[391233159,1760422238129,-500.0,0.00019306,2]
[391233160,1760422238139,-500.0,0.00019306,2]
[391233161,1760422238148,-500.0,0.00019306,2]
[391233162,1760422238157,-500.0,0.00019306,2]
[391233163,1760422238166,-500.0,0.00019306,2]
[391233164,1760422238176,-564.07640732,0.00019306,2]
[391233165,1760422238185,-294.42014221,0.00019306,2]
[391233166,1760422238195,-300.0,0.00019306,2]
[391233167,1760422238204,-216.86040173,0.00019306,2]
[391233168,1760422238213,-500.0,0.00019306,2]
[391233169,1760422238222,-194.66068688,0.00019306,2]
[391233170,1760422238232,-500.0,0.00019306,2]
[391233171,1760422238241,-500.0,0.00019306,2]
[391233172,1760422238250,-500.0,0.00019306,2]
[391233173,1760422238259,-500.0,0.00019306,2]
[391233174,1760422238268,-500.0,0.00019306,2]
[391233175,1760422238278,-500.0,0.00019306,2]
[391233176,1760422238287,-426.85931804,0.00019306,2]
[391233177,1760422238296,-639.06875692,0.00019306,2]
[391233178,1760422238307,-500.0,0.00019306,2]
[391233179,1760422238316,-500.0,0.00019306,2]
[391233180,1760422238325,-500.0,0.00019306,2]
[391233181,1760422238334,-259.08628391,0.00019306,2]
[391233182,1760422238344,-500.0,0.00019306,2]
[391233183,1760422238353,-500.0,0.00019306,2]
[391233184,1760422238363,-500.0,0.00019306,2]
[391233185,1760422238372,-500.0,0.00019306,2]
[391233186,1760422238381,-500.0,0.00019306,2]
[391233187,1760422238390,-500.0,0.00019306,2]
[391233188,1760422238399,-500.0,0.00019306,2]
[391233189,1760422238408,-500.0,0.00019306,2]
[391233190,1760422238418,-151.02019108,0.00019307,2]
[391233191,1760422238428,-18603.8837,0.00019307,2]
[391233192,1760422238438,-151.0,0.00019307,2]
[391233193,1760422238448,-151.0,0.00019307,2]
[391233194,1760422238457,-151.0,0.00019307,2]
[391233195,1760422238467,-151.0,0.00019307,2]
[391233196,1760422238476,-151.0,0.00019307,2]
[391233197,1760422238486,-151.0,0.00019307,2]
[391233198,1760422238495,-151.0,0.00019307,2]
[391233199,1760422238505,-151.0,0.00019307,2]
[391233200,1760422238514,-151.0,0.00019307,2]
[391233201,1760422238524,-151.0,0.00019307,2]
[391233202,1760422238534,-151.0,0.00019307,2]
[391233203,1760422238543,-151.0,0.00019307,2]
[391233204,1760422238553,-151.0,0.00019307,2]
[391233205,1760422238563,-500.0,0.00019307,2]
[391233206,1760422238573,-151.0,0.00019307,2]
[391233207,1760422238582,-151.0,0.00019307,2]
[391233208,1760422238591,-151.0,0.00019307,2]
[391233209,1760422238601,-500.0,0.00019307,2]
[391233210,1760422238610,-162.380719,0.00019307,2]
[391233211,1760422238619,-151.0,0.00019307,2]
[391233212,1760422238629,-500.0,0.00019307,2]
[391233213,1760422238638,-151.0,0.00019307,2]
[391233214,1760422238647,-151.0,0.00019307,2]
[391233215,1760422238657,-500.0,0.00019307,2]
[391233216,1760422238672,-151.0,0.00019307,2]
[391233217,1760422238682,-162.380719,0.00019307,2]
[391233218,1760422238691,-237.15027668,0.00019307,2]
[391233219,1760422238704,-500.0,0.00019307,2]
[391233220,1760422238836,-151.0,0.00019307,2]
[391233221,1760422238846,-500.0,0.00019307,2]
[391233222,1760422238856,-151.0,0.00019307,2]